[Event "1000GM Spring IM-D 2024"]
[Site "New York"]
[Date "2024.04.01"]
[Round "9.9"]
[White "Rohde, Michael"]
[Black "Gaw, Chloe"]
[Result "1-0"]
[ECO "D27"]
[WhiteElo "2318"]
[BlackElo "2092"]
[Annotator "RC"]
[PlyCount "121"]
[EventDate "2024.03.26"]
[EventType "tourn"]
[EventCountry "USA"]
[SourceTitle "playchess.com"]
[Source "ChessBase"]
[SourceQuality "1"]
[TimeControl "5400+30"]

1. Nf3 {[%emt 0:00:07]} d5 {[%emt 0:00:07]} 2. d4 {[%emt 0:00:04]} Nf6 {[%emt 0:00:05]} 3. c4 {[%emt 0:00:02]} dxc4 {[%emt 0:00:04]} 4. e3 {[%emt 0:00:04]} e6 {[%emt 0:00:03]} 5. Bxc4 {[%emt 0:00:04]} c5 {[%emt 0:00:09]} 6. O-O {[%emt 0:00:05]} a6 {[%emt 0:00:05]} 7. a4 {[%emt 0:00:44]} Nc6 {[%emt 0:00:08]} 8. Qe2 {[%emt 0:00:16]} cxd4 {[%emt 0:00:28]} 9. Rd1 {[%emt 0:00:10]} Be7 {[%emt 0:00:09]} 10. exd4 {[%emt 0:00:06]} O-O {[%emt 0:00:31]} 11. Nc3 {[%emt 0:00:04]} Nb4 {[%emt 0:00:27]} 12. Ne5 {[%emt 0:02:46]} Nfd5 {[%emt 0:08:09]} 13. Ne4 {[%emt 0:03:17]} Bd7 {[%emt 0:16:23]} 14. Ra3 {[%emt 0:04:38]} Be8 {[%emt 0:13:28]} 15. Rg3 {[%emt 0:06:25]} Kh8 {[%emt 0:15:17]} 16. Qg4 {[%emt 0:08:42]} g6 {[%emt 0:02:14]} 17. Ng5 {[%emt 0:01:45]} Nf6 {[%emt 0:04:06]} 18. Qh3 {[%emt 0:11:54]} Nh5 {[%emt 0:04:53]} 19. Be2 {[%emt 0:26:40]} Bxg5 {[%emt 0:08:46]} 20. Bxg5 {[%emt 0:00:11]} Nxg3 {[%emt 0:03:33]} 21. Bxd8 {[%emt 0:00:17]} Nxe2+ {[%emt 0:00:09]} 22. Kf1 {[%emt 0:00:21]} Rxd8 {[%emt 0:00:28]} 23. Qa3 {[%emt 0:00:38]} a5 {[%emt 0:09:09]} 24. Kxe2 {[%emt 0:00:15]} Bc6 {[%emt 0:00:46]} 25. Nc4 {[%emt 0:04:53]} b6 {[%emt 0:05:29]} 26. Nxb6 {[%emt 0:01:32]} Kg8 {[%emt 0:00:51]} 27. Nc4 {[%emt 0:06:08]} Nc2 {[%emt 0:01:54]} 28. Qc3 {[%emt 0:01:39]} Bxa4 {[%emt 0:01:34]} 29. b3 {[%emt 0:03:13]} Bxb3 {[%emt 0:00:17]} 30. Qxb3 {[%emt 0:00:09]} Nxd4+ {[%emt 0:00:07]} 31. Rxd4 {[%emt 0:00:03]} Rxd4 {[%emt 0:00:07]} 32. Nxa5 {[%emt 0:04:03]} Rc8 {[%emt 0:02:10]} 33. Nc6 {[%emt 0:01:17]} Rd7 {[%emt 0:00:16]} 34. Ne5 {[%emt 0:00:55]} Rdc7 {[%emt 0:00:28]} 35. g3 {[%emt 0:02:55]} Rc1 {[%emt 0:01:36]} 36. Qb7 {[%emt 0:02:30]} R8c7 {[%emt 0:01:46]} 37. Qb6 {[%emt 0:02:35]} R1c5 {[%emt 0:01:00]} 38. Kf1 {[%emt 0:01:42]} Rc8 {[%emt 0:00:40]} 39. Ng4 {[%emt 0:01:59]} h5 {[%emt 0:00:49]} 40. Nf6+ {[%emt 0:00:13]} Kh8 {[%emt 0:00:49]} 41. Qd6 {[%emt 0:00:57]} R5c6 {[%emt 0:00:40]} 42. Qf4 {[%emt 0:01:11]} Kg7 {[%emt 0:00:25]} 43. Qg5 {[%emt 0:02:18]} Rc5 {[%emt 0:00:32]} 44. Nxh5+ {[%emt 0:00:37]} Kg8 {[%emt 0:00:34]} 45. Nf6+ {[%emt 0:00:23]} Kg7 {[%emt 0:00:06]} 46. Qh4 {[%emt 0:00:51]} Rf5 {[%emt 0:00:45]} 47. Ng4 {[%emt 0:00:40]} Rh8 {[%emt 0:00:36]} 48. Qe7 {[%emt 0:00:14]} Ra8 {[%emt 0:00:39]} 49. Qb4 {[%emt 0:01:09]} Raa5 {[%emt 0:00:37]} 50. Qc3+ {[%emt 0:00:33]} Kf8 {[%emt 0:00:30]} 51. Nh6 {[%emt 0:00:55]} Rh5 {[%emt 0:01:06]} 52. Qh8+ {[%emt 0:00:16]} Ke7 {[%emt 0:00:00]} 53. Qg7 {[%emt 0:00:18]} Rxh2 {[%emt 0:00:10]} 54. Qxf7+ {[%emt 0:00:14]} Kd6 {[%emt 0:00:24]} 55. Qf4+ {[%emt 0:00:54]} Kd7 {[%emt 0:00:38]} 56. Qd4+ {[%emt 0:00:18]} Rd5 {[%emt 0:00:14]} 57. Qg7+ {[%emt 0:00:17]} Kd6 {[%emt 0:00:27]} 58. Ng4 {[%emt 0:00:13]} Rh1+ {[%emt 0:00:35]} 59. Kg2 {[%emt 0:00:19]} Rc1 {[%emt 0:00:36]} 60. Qf8+ {[%emt 0:01:20]} Kc7 {[%emt 0:00:06]} 61. Qf4+ {[%emt 0:00:16]} 1-0